Cogmind - Beta 13 @@@ ROGUE MODE // 2024.04.09 @ 22:19:36 Player: graour Result: Self-destructed Performance ------------- Evolutions (4) 2000 Regions Visited (6) 1200 Robots Destroyed (47) 235 Value Destroyed (2010) 2010 Prototype IDs (3) 60 Alien Tech Used (0) 0 Bonus (197) 197 TOTAL SCORE: 5702 Bonus ------- High Alert Combat Kills 133 Follower Combat Kills 76 Friendly Fire -12 Cogmind --------- Core Integrity 576/850 Matter 40/300 Energy 28/100 System Corruption 3% Temperature Hot (276) Movement Core (200) Ox3 Location -6/Factory Parts ------- > --- POWER (1) -------- (None) > --- PROPULSION (4) --- (None) > --- UTILITY (4) ------ Small Storage Unit Targeting Computer Weapon Cycler > --- WEAPON (6) ------- Gauss Rifle > --- INVENTORY (8) ---- Improved Deuterium Engine Light Treads Cooling System Particle Cannon Flak Cannon Heavy Flak Cannon Rocket Launcher Plasma Cutter Peak State ------------ > --- POWER ------------ Heavy Deuterium Engine > --- PROPULSION ------- Wheel Armored Huge Wheel > --- UTILITY ---------- Small Storage Unit Targeting Computer Weapon Cycler Hardened Medium Armor Plating > --- WEAPON ----------- Gatling Laser Phase Cannon Autogun Gauss Rifle Flak Cannon Magnetic Acceleration Cannon > --- INVENTORY -------- Improved Deuterium Engine Light Treads Cooling System Cooling System Particle Cannon Flak Cannon Heavy Flak Cannon Plasma Cutter [Rating: 48] Favorites ----------- Power Heavy Deuterium Engine Engine Heavy Deuterium Engine Power Core Light Nuclear Core Propulsion Wheel Wheel Wheel Utility Small Storage Unit Device Cooling System Storage Small Storage Unit Processor Targeting Computer Protection Improved Light Armor Plating Weapon Heavy Assault Rifle Energy Gun Gatling Laser Energy Cannon Phase Cannon Ballistic Gun Heavy Assault Rifle Ballistic Cannon Flak Cannon Launcher Rocket Launcher Impact Weapon Maul Build | -11 -10 -9 -9 -8 -7 -6 ------- Run | Yrd Mat Mat Min Mat Fac Fac Slots Evolved 8 | . . 2 . 2 2 2 Power . | . . . . . . . Propulsion 2 | . . . . 1 1 . Utility 2 | . . . . 1 1 . Weapon 4 | . . 2 . . . 2 Parts Attached 51 | 6 2 3 8 10 12 10 Power 6 | 1 . 1 . 1 3 . Engine 4 | 1 . 1 . . 2 . Core 2 | . . . . 1 1 . Reactor . | . . . . . . . Propulsion 12 | 2 1 . 3 2 3 1 Treads . | . . . . . . . Leg . | . . . . . . . Wheel 12 | 2 1 . 3 2 3 1 Hover . | . . . . . . . Flight . | . . . . . . . Utility 8 | 1 1 . . 2 2 2 Device 4 | . . . . 2 1 1 Storage 1 | 1 . . . . . . Processor 1 | . 1 . . . . . Hackware . | . . . . . . . Protection 2 | . . . . . 1 1 Artifact . | . . . . . . . Weapon 25 | 2 . 2 5 5 4 7 Energy Gun 3 | . . . 1 . . 2 Energy Cannon 1 | . . . . . . 1 Ballistic Gun 15 | 2 . 2 3 4 2 2 Ballistic Cannon 3 | . . . . 1 . 2 Launcher 2 | . . . . . 2 . Special Weapon . | . . . . . . . Impact Weapon 1 | . . . 1 . . . Slashing Weapon . | . . . . . . . Piercing Weapon . | . . . . . . . Special Melee Weapon . | . . . . . . . Unidentified Prototypes 3 | . . . . . 2 1 Parts Lost 14 | . . . . . 3 11 Power 1 | . . . . . . 1 Propulsion 6 | . . . . . 2 4 Utility 1 | . . . . . . 1 Weapon 6 | . . . . . 1 5 Highest Loss Streak 7 | . . . . . 2 7 To Critical Strikes . | . . . . . . . Average Slot Usage (%) 95 | . 95 100 99 100 96 84 Engine 6 | . 14 11 11 1 3 5 Core 2 | . . . . 7 3 . Wheel 22 | . 28 22 22 27 27 12 Device 6 | . . . . 9 12 5 Storage 8 | . 14 11 11 9 7 6 Processor 8 | . 10 11 11 9 7 6 Protection 1 | . . . . . 1 5 Ballistic Gun 27 | . 28 44 43 30 18 15 Ballistic Cannon 5 | . . . . 5 7 11 Launcher 1 | . . . . . 3 4 Naked Turns . | . . . . . . . Heaviest Build 58 | 12 12 18 22 27 38 58 Greatest Support 52 | 26 32 32 32 36 52 48 Greatest Overweight (x) 1 | . . . . . 1 1 Average Overweight (x) . | . . . . . . . Largest Inventory Capacity 8 | 8 8 8 8 8 8 8 Average Capacity 7 | 7 8 8 8 8 8 8 Most Carried 8 | 6 8 8 8 8 8 8 Average Carried 7 | 3 7 7 7 7 6 7 Final Capacity 8 | 8 8 8 8 8 8 8 Final Carried 8 | 6 8 8 8 8 8 8 Class Distribution -------------------- 38% | Scavenger-Gunner 30% | Gunner 19% | Executioner 11% | Mutant Dominant Class ---------------- Mutant | -10/Materials Gunner | -9/Materials Gunner | -9/Mines Scavenger-Gunner | -8/Materials Scavenger-Gunner | -7/Factory Executioner | -6/Factory Resources | -11 -10 -9 -9 -8 -7 -6 ----------- Run | Yrd Mat Mat Min Mat Fac Fac Matter Collected 1428 | 236 . 163 105 285 419 220 Remotely . | . . . . . . . Salvage Created 1513 | . 79 208 15 250 493 468 Parts 62 | . 1 9 . 8 21 23 Haulers Intercepted 1 | . . . . 1 . . Recyclers Shooed . | . . . . . . . Parts Field Recycled . | . . . . . . . Retrieved Matter . | . . . . . . . Parts Self-Destructed . | . . . . . . . Prevented . | . . . . . . . Kills | -11 -10 -9 -9 -8 -7 -6 ------- Run | Yrd Mat Mat Min Mat Fac Fac Combat Hostiles Destroyed 39 | . 2 4 1 5 13 14 Guns 21 | . 2 4 1 4 5 5 Cannons 9 | . . . . 1 5 3 AOE 9 | . . . . . 3 6 Classes Destroyed 13 | . 1 1 1 1 4 5 Worker 3 | . . . . . . 3 Builder 1 | . . . . . 1 . Hauler 1 | . . . . 1 . . Operator 1 | . . . . . 1 . Watcher 3 | . . . . . 1 2 Swarmer 7 | . . . . . . 7 Grunt 23 | . 2 2 . 5 10 4 Brawler 1 | . . . . . . 1 Duelist 1 | . . . . . . 1 Sentry 4 | . . 2 . . 2 . Hunter 1 | . . . . . . 1 Programmer 1 | . . . . . 1 . Assembled 1 | . . . 1 . . . Best Kill Streak 8 | . 2 2 1 3 4 8 Combat Bots Only 5 | . 2 2 1 3 4 5 Max Kills in Single Turn 6 | . 1 1 1 1 2 6 Gunslinging . | . . . . . . . Exploded 4 | . . . . . 2 4 Melee . | . . . . . . . Uniques/NPCs Destroyed . | . . . . . . . Combat | -11 -10 -9 -9 -8 -7 -6 -------- Run | Yrd Mat Mat Min Mat Fac Fac Hostile Shots Fired 267 | . 9 15 4 29 88 122 Missed 67 | . 1 4 . 8 33 21 Damage Taken 3083 | . 122 161 78 274 634 1814 Core 484 | . 44 34 . 41 91 274 Absorbed by Shields . | . . . . . . . Core Remaining (%) 90 | 100 82 . 91 92 87 . Volleys Fired 91 | . 7 10 2 13 34 25 Largest 6 | . 2 4 4 4 4 6 Hottest 313 | . 40 80 83 113 123 313 Shots Fired 309 | . 14 40 8 52 115 80 Gun 229 | . 14 40 8 41 77 49 Cannon 76 | . . . . 11 34 31 Launcher 4 | . . . . . 4 . Special . | . . . . . . . Kinetic 279 | . 14 40 8 52 111 54 Thermal 26 | . . . . . . 26 Explosive 4 | . . . . . 4 . Electromagnetic . | . . . . . . . Robot Hit Streak 14 | . 11 11 1 11 14 5 Robot Miss Streak 9 | . 1 1 2 3 7 9 Penetration Max . | . . . . . . . Secondary Targets 1 | . 1 . . . . . Max Gunslinging Chain 1 | . 1 . . . . . Shots Hit Robots 183 | . 12 28 2 29 70 42 Core Hits 130 | . 6 12 2 20 51 39 Critical Kills . | . . . . . . . Critical Parts Destroyed 1 | . . 1 . . . . Critical Strikes 1 | . . 1 . . . . Destroy 1 | . . 1 . . . . Melee Attacks . | . . . . . . . Impact . | . . . . . . . Slashing . | . . . . . . . Piercing . | . . . . . . . Sneak Attacks . | . . . . . . . Combat Hostiles . | . . . . . . . Follow-up Attacks . | . . . . . . . Damage Inflicted 4655 | . 89 291 17 529 1789 1940 Guns 2077 | . 89 291 17 367 732 581 Cannons 953 | . . . . 162 474 317 Explosions 1616 | . . . . . 583 1033 Melee . | . . . . . . . Ramming 9 | . . . . . . 9 Kinetic 2600 | . 89 291 17 529 1206 468 Thermal 1431 | . . . . . 108 1323 Explosive 475 | . . . . . 475 . Electromagnetic 140 | . . . . . . 140 Impact . | . . . . . . . Slashing . | . . . . . . . Piercing . | . . . . . . . Highest Corruption 2 | . . . . . . 2 Average Corruption 2 | . . . . . . 2 Corruption Purged . | . . . . . . . Corruption Blocked . | . . . . . . . Effects 1 | . . . . . . 1 Matter Fused 1 | . . . . . . 1 Overload Shots . | . . . . . . . Overflow Damage 253 | . . . . . 84 169 Projectiles . | . . . . . . . Explosions 253 | . . . . . 84 169 Melee . | . . . . . . . Knockbacks 18 | . . . . 4 6 8 Impact . | . . . . . . . Kinetic 16 | . . . . 4 6 6 Secondary 2 | . . . . . . 2 Self-Inflicted Damage 207 | . . . . . 19 188 Shots 5 | . . . . . 1 4 Rammed 1 | . . . . . . 1 Targets Rammed 1 | . . . . . . 1 Kicked . | . . . . . . . Crushed . | . . . . . . . Highest Temperature 657 | . 18 75 15 9 155 657 Average Temperature 166 | . 9 34 10 9 84 250 Received Heat Transfer 768 | . 69 69 9 135 267 219 Effects 5 | . . . . . . 5 Shutdowns 1 | . . . . . . 1 Energy Bleed 1 | . . . . . . 1 Interference 1 | . . . . . . 1 Damage (major) 2 | . . . . . . 2 Siege Activations . | . . . . . . . Robots Corrupted . | . . . . . . . Combat Hostiles . | . . . . . . . Parts Fried . | . . . . . . . Impact Corruptions . | . . . . . . . Robots Melted . | . . . . . . . Combat Hostiles . | . . . . . . . Parts Melted 1 | . . . . . . 1 Heat Transferred 1736 | . . . . . 100 1636 Parts Sabotaged . | . . . . . . . Parts Stolen . | . . . . . . . Parts Stripped . | . . . . . . . Power Chain Reactions 1 | . . . . . . 1 Alert | -11 -10 -9 -9 -8 -7 -6 ------- Run | Yrd Mat Mat Min Mat Fac Fac Peak Influence 603 | . 77 96 52 168 472 603 Initial 231 | . . 32 37 . 76 231 Average 173 | . 31 38 41 77 227 419 Maximum Alert Level 2 | . . . . . 2 2 Low Security (%) 66 | 100 100 100 100 100 53 . Level 1 16 | . . . . . 29 37 Level 2 17 | . . . . . 16 62 Level 3 . | . . . . . . . Level 4 . | . . . . . . . Level 5 . | . . . . . . . High Security . | . . . . . . . Max Security . | . . . . . . . Squads Dispatched 7 | . . . . 3 2 2 Investigation 1 | . . . . 1 . . Extermination 1 | . . . . . 1 . Reinforcement 5 | . . . . 2 1 2 Assault . | . . . . . . . Garrison . | . . . . . . . Intercept . | . . . . . . . Searches Triggered . | . . . . . . . Construction Impeded 1 | . . . . . . 1 Haulers Reinforced . | . . . . . . . Active Scanning Responses . | . . . . . . . Cargo Convoy Interrupts . | . . . . . . . Stealth | -11 -10 -9 -9 -8 -7 -6 --------- Run | Yrd Mat Mat Min Mat Fac Fac Distress Signals 1 | . . 1 . . . . Communications Jammed . | . . . . . . . Distress Signals . | . . . . . . . Times Spotted 66 | . 2 5 6 6 19 28 Peak Tracking Total 9 | . 2 4 1 2 5 9 Tactical Retreats 2 | . . . . . 1 1 Traps | -11 -10 -9 -9 -8 -7 -6 ------- Run | Yrd Mat Mat Min Mat Fac Fac Traps Triggered 2 | . . . . 1 . 1 Indirectly . | . . . . . . . Trap Hack Attempts . | . . . . . . . Triggered . | . . . . . . . Disarmed . | . . . . . . . Reprogrammed . | . . . . . . . Reused . | . . . . . . . Traps Extracted . | . . . . . . . Installed . | . . . . . . . Triggered . | . . . . . . . Machines | -11 -10 -9 -9 -8 -7 -6 ---------- Run | Yrd Mat Mat Min Mat Fac Fac Machines Disabled 22 | . . . . . 13 9 Max in Single Turn 8 | . . . . . 8 4 Machines Repaired . | . . . . . . . Machines Dismantled . | . . . . . . . Machines Sabotaged . | . . . . . . . Overloaded Fab Kills . | . . . . . . . Hacking | -11 -10 -9 -9 -8 -7 -6 --------- Run | Yrd Mat Mat Min Mat Fac Fac Machines Accessed 16 | . 4 4 . 4 3 1 Terminals 14 | . 4 4 . 4 2 . Fabricators 1 | . . . . . 1 . Repair Stations . | . . . . . . . Recycling Units 1 | . . . . . . 1 Scanalyzers . | . . . . . . . Garrison Access . | . . . . . . . Total Hacks 36 | . 10 11 . 8 6 1 Successful 18 | . 6 6 . 5 1 . Failed 18 | . 4 5 . 3 5 1 Catastrophic 1 | . . . . . 1 . Database Lockouts . | . . . . . . . Manual 8 | . . 1 . 6 1 . Terminals 32 | . 10 11 . 8 3 . Fabricators 3 | . . . . . 3 . Repair Stations . | . . . . . . . Recycling Units 1 | . . . . . . 1 Scanalyzers . | . . . . . . . Garrison Access . | . . . . . . . Terminal Hacks 17 | . 6 6 . 5 . . Record 6 | . . 3 . 3 . . Terminal Index 1 | . . 1 . . . . Unreport Threat 1 | . . 1 . . . . Locate Traps 4 | . 2 1 . 1 . . Dispatch Records 1 | . 1 . . . . . Surveillance Status 1 | . 1 . . . . . Hauler Manifests 1 | . 1 . . . . . Zone Layout 2 | . 1 . . 1 . . Fabricator Hacks 1 | . . . . . 1 . Network Status 1 | . . . . . 1 . Repair Station Hacks . | . . . . . . . Recycling Unit Hacks . | . . . . . . . Scanalyzer . | . . . . . . . Garrison Access Hacks . | . . . . . . . Unauthorized Hacks . | . . . . . . . Terminals . | . . . . . . . Fabricators . | . . . . . . . Repair Stations . | . . . . . . . Recycling Units . | . . . . . . . Scanalyzers . | . . . . . . . Garrison Access . | . . . . . . . Data Cores Recovered . | . . . . . . . Used . | . . . . . . . Hacking Detections 11 | . 2 4 . 2 2 1 Full Trace Events . | . . . . . . . Feedback Events . | . . . . . . . Feedback Blocked . | . . . . . . . Robot Schematics Acquired . | . . . . . . . Robots Built . | . . . . . . . Authchips . | . . . . . . . Time . | . . . . . . . Total Robot Build Rating . | . . . . . . . Part Schematics Acquired . | . . . . . . . Parts Built . | . . . . . . . Authchips . | . . . . . . . Time . | . . . . . . . Total Part Build Rating . | . . . . . . . Parts Repaired . | . . . . . . . Time . | . . . . . . . Parts Recycled . | . . . . . . . Recycled Matter . | . . . . . . . Retrieved Matter . | . . . . . . . Retrieved Components . | . . . . . . . Parts Scanalyzed . | . . . . . . . Part Schematics Acquired . | . . . . . . . Parts Damaged . | . . . . . . . Bothacking | -11 -10 -9 -9 -8 -7 -6 ------------ Run | Yrd Mat Mat Min Mat Fac Fac Used RIF Installer . | . . . . . . . Robots Hacked . | . . . . . . . Non-combat . | . . . . . . . Combat . | . . . . . . . Robot Hacks Applied . | . . . . . . . Relay Couplers Released . | . . . . . . . Fabnet Peak Effective % . | . . . . . . . Robots Rewired . | . . . . . . . Allies Hacked . | . . . . . . . Hacks Repelled . | . . . . . . . Allies | -11 -10 -9 -9 -8 -7 -6 -------- Run | Yrd Mat Mat Min Mat Fac Fac Total Allies 2 | . . . 2 . . . Largest Group 2 | . . . 2 2 . . Highest-Rated Group 49 | . . . 49 49 . . Highest-Rated Ally 31 | . . . 31 31 . . Total Orders . | . . . . . . . Ally Attacks 27 | . . . 8 19 . . Total Damage 360 | . . . 83 277 . . Kills 5 | . . . 3 2 . . Allies Corrupted . | . . . . . . . Allies Melted . | . . . . . . . Intel | -11 -10 -9 -9 -8 -7 -6 ------- Run | Yrd Mat Mat Min Mat Fac Fac Robot Analysis Total . | . . . . . . . Derelict Logs Recovered 1 | . . . 1 . . . Drone Launches . | . . . . . . . Drone Recoveries . | . . . . . . . Exploration | -11 -10 -9 -9 -8 -7 -6 ------------- Run | Yrd Mat Mat Min Mat Fac Fac Turns Passed 2527 | 65 221 208 459 336 732 506 Spaces Moved 1880 | 58 215 108 397 295 440 367 Core 2 | 2 . . . . . . Treads . | . . . . . . . Legs . | . . . . . . . Wheels 1878 | 56 215 108 397 295 440 367 Hover . | . . . . . . . Flight . | . . . . . . . Fastest Speed 50 | 50 90 100 80 80 80 86 Average Speed 92 | 87 90 100 95 81 87 104 Slowest Speed 115 | 90 100 100 100 86 95 115 Overloaded Moves . | . . . . . . . Propulsion Burnouts . | . . . . . . . Robots Hopped . | . . . . . . . Cave-ins Triggered . | . . . . . . . Exploration Rate (%) 25 | 4 33 13 73 28 13 12 Regions Visited 6 Branch Regions 1 Pre-discovered Areas 1 | . . . 1 . . . Known Exits Taken . | . . . . . . . Unknown Exits Taken 6 | 1 1 1 1 1 1 . Scrap Searched 1 | . . . 1 . . . Spaces Dug . | . . . . . . . Terrain Destroyed 124 | . . . . . 28 96 Melee . | . . . . . . . Projectile 6 | . . . . . . 6 AOE 118 | . . . . . 28 90 Terrain Rammed . | . . . . . . . Walls Destroyed . | . . . . . . . Machines Disabled . | . . . . . . . Actions | -11 -10 -9 -9 -8 -7 -6 --------- Run | Yrd Mat Mat Min Mat Fac Fac Total 2482 | 69 231 187 481 363 707 444 Wait 384 | . 1 62 55 28 209 29 Move 1874 | 57 214 107 396 294 439 367 Hop . | . . . . . . . Pick Up 31 | 6 4 3 6 6 3 3 Fast Attach 23 | 6 1 . 4 1 6 5 Attach 8 | . . 2 . 2 3 1 Detach 4 | . . . . . 3 1 Swap 20 | . 1 1 4 7 3 4 Drop 46 | . 3 2 14 12 7 8 Fire 91 | . 7 10 2 13 34 25 Melee . | . . . . . . . Ram 1 | . . . . . . 1 Kick . | . . . . . . . Crush . | . . . . . . . Escape Stasis . | . . . . . . . Rewire . | . . . . . . . Trap . | . . . . . . . Miscellaneous . | . . . . . . . Route ------- -11/Scrapyard -10/Materials (discovered 2 exits: *Mat / [*Min]) -9/Materials (discovered 2 exits: [*Min] / [*Sto]) -9/Mines (discovered 2 exits: *Mat x2) -8/Materials -7/Factory -6/Factory History --------- Turn | Location | Event 18 | -11/Scrapyard | Discovered new exit (range 15) 66 | -11/Scrapyard | Entered Materials 90 | -10/Materials | Discovered new exit (range 11) 274 | -10/Materials | Discovered new exit (range 10) 287 | -10/Materials | Entered another Materials area 287 | -9/Materials | Evolved 2 slots: Weapon x2 318 | -9/Materials | Discovered new exit (range 11) 368 | -9/Materials | Discovered new exit (range 2) 495 | -9/Materials | Entered Mines 559 | -9/Mines | Learned location of Zion (-6) 566 | -9/Mines | Build established: Gunner 570 | -9/Mines | Assembled infested the area 601 | -9/Mines | Joined a pair of Derelicts in attacking an 0b10 outpost 803 | -9/Mines | Discovered new exit (range 9) 832 | -9/Mines | Received a Rocket Launcher from a helpful Derelict 931 | -9/Mines | Discovered new exit (range 12) 954 | -9/Mines | Entered Materials 954 | -8/Materials | Accompanied by 2 allies 954 | -8/Materials | Evolved 2 slots: Propulsion x1, Utility x1 959 | -8/Materials | Led the pair of lost Derelicts to an unsafe place 1081 | -8/Materials | Discovered new exit (range 15) 1155 | -8/Materials | Build established: Scavenger-Gunner 1290 | -8/Materials | Entered Factory 1290 | -7/Factory | Evolved 2 slots: Propulsion x1, Utility x1 2016 | -7/Factory | Discovered new exit (range 4) 2022 | -7/Factory | Entered another Factory area 2022 | -6/Factory | Evolved 2 slots: Weapon x2 2154 | -6/Factory | Spotted B-75 Beast 2346 | -6/Factory | Build established: Executioner 2528 | -6/Factory | Self-destructed Last Messages --------------- 02521_ ALERT: Construction progress impeded, dispatching reinforcements to local area. 02522_ U-05 Engineer lays Concrete. 02523_ U-05 Engineer builds a Wall. 02523_ U-05 Engineer lays Concrete. 02523_ Phase Cannon destroyed. 02523_ U-05 Engineer lays Concrete. 02524_ U-05 Engineer builds a Wall. 02524_ U-05 Engineer lays Concrete. 02524_ U-05 Engineer builds a Wall. 02524_ U-05 Engineer lays Concrete. 02524_ R-10 Processor collects Lgt. Angular Momentum Engine. 02525_ U-05 Engineer lays Concrete. 02525_ Gatling Laser destroyed. 02526_ U-05 Engineer lays Concrete. 02526_ Magnetic Acceleration Cannon destroyed. 02526_ U-05 Engineer lays Concrete. 02527_ Penetrated by Slug. 02528_ U-05 Engineer lays Concrete. Map ----- +----------------------------------------------------+ | ????????????????????## "#?????????????? | | ?????????????????????#""" "#?????????????? | | ?????????????????????#"Y ##?????????????? | | ?????????????????????#""" #??????????????? | | ?????????????????????# #??????????????? | | ?????????????????????#######/#################???? | | ?????????????????????????# + #???? | | ?????????????????????????# # #???? | | ??????#############??????# # #???? | | ???? # ######## # #???? | | ??? # + # #???? | | ?? # # # #???? | | "" # """""" # ###+#############?? | | "" # """""" # """ """ ^ ? | | # """""" # """ """ ? | | "" # """""" + """ """ | | "" # # | | "" ?# ! # | | ???# ! # ########### #####+#####??? | | +###### " "" # # #%## ??????????? | | + "R"" # ###;; #+## ?????????? | | #### """" # # p h % # "?????????? | | #??############# # uu u # ????????? | | #??????????????# + u RR # "?????????? | | #??????????????# #g u # ????????? | | #??????????????# #@ m; ????????? | | ##########?????# ##g;; ;;;; ????????? | | ?? uu ;;####!!?????????? | | # u #???????????? | | ? #? #???????????? | | ? #??? #???????????? | | ? #?????#???????????? | | ######### ####?##########?????????????????? | | #???????? ????????????????????????????????? | | !!#????????? ?????????????????????????????????? | | !!#????????? ??????????????????????????????????? | | #?????????????????????????????????????????????? | | #?????????????????????????????????????????????? | | ####?????????????????????????????????????????????? | | ?????????????????????????????????????????????????? | | ?????????????????????????????????????????????????? | | ?????????????????????????????????????????????????? | | ?????????????????????????????????????????????????? | | ?????????????????????????????????????????????????? | | ?????????????????????????????????????????????????? | | ?????????????????????????????????????????????????? | | ?????????????????????????????????????????????????? | | ?????????????????????????????????????????????????? | | ?????????????????????????????????????????????????? | | ?????????????????????????????????????????????????? | +----------------------------------------------------+ Best States ------------- Heat Dissipation 78 Energy Generation 18 Energy Capacity 310 Matter Stores 300 Matter Capacity 300 Sight Range 16 Terrain Scan Density 10 Armor Coverage 225 Weapon Cycling 15 Evasion (%) 44 Targeting Accuracy 5 Item Schematics ----------------- None Robot Schematics ------------------ None Fabricated ------------ Nothing Alien Tech Used ----------------- None Achievements -------------- None Challenges ------------ None Game ------ Seed LightpackFrostPurifier Manual? 0 Play Time 00:41:01 Cumulative 19.8 hours Start 2024.04.09 @ 21:39:48 End 2024.04.09 @ 22:19:36 Sessions 1 Manual Loads 0 Difficulty Rogue Special Mode None Game No. 38 Rogue 38 Adventurer 0 Explorer 0 Win Type - Total 0 Types 0/0/0/0/0/0/0/0/0 Lore% 18 Gallery% 28 Achievement% 21 Wizard Run 0 Options --------- Layout 1 ASCII 0 Keyboard 1 Movement Arrows Keybinds 0 Fullscreen 1 Font 24/Smallcaps Map View 50x35 Zoom Use 0% Tactical HUD 1 Map Filters NONE Filters NONE Steam 1 RUN: 527744e8-b00b-46e9-a175-0c0e08211c20